Workbook

Sheet الشيت الرئيسي
B1: محافظة اسيوط
B2: ادارة اسيوط التعليمية | D2: مذكرة للعرض على / السيد اللواء الوزير / محافظ اسيوط
B3: ادارة الموارد البشرية
B4: قسم الماهيات
B5: الموضوع : تنفيذ الاحكام القضائية الصادرة لللمعلمين بديوان ادارة اسيوط التعليمية ومدارسها باحقيتهم فى صرف الحوافز ومكافاة الامتحانات والاعمال الاضافية وجميع المزايا النقدية والعينية المقررة
B6: على اساس المرتب فى 30/6/2016 مع ما يترتب على ذلك من اثار من بند بدل المعلم 4 / 45 وبند حافز الاداء 3 / 23 وبند حافز الاثابة 3 / 3 وبند المكافاة 3 / 14 وبند الجهود الغير عادية
B7: العرض : صدر الكتاب الدورى رقم (1) لسنة 2020 من الجهاز المركزى للتنظيم والادارة بشان الاجراءات والمستندات اللازمة لموافاة الجهاز بها بتنفيذ الاحكام القضائية ضد الجهاز الادارى للدولة حيث نص بند (1)
B8: من وعلى ارفاق مذكرة معتمدة من السلطة المختصة متضمنه التكاليف اللازمة لتنفيذ الحكم والبند والنوع المطلوب للتنفيذ منه وحيث وردت الاحكام الاتية باجمالى مبلغ ( ) جنيه مصري لعدد ( )
A9: البند المطلوب تعزيزة : بند بدل المعلم 4 / 45 وبند بدل الاعتماد 4 / 46 وبند حافز الاداء 3 / 23 وبند حافز الاثابة 3 / 3 وبند المكافاة 3 / 14 وبند الجهود غير العادية للمعلمين بادارة اسيوط التعليمية ومدارسها الصادرة لهم احكام قضائية وبياناتهم كالاتى | N9: الفرق | O9: بدل معلم ( 50 % ) | P9: عدد الشهور | Q9: مبلغ المدة | R9: حافز ( 25 % ) | S9: عدد الشهور | T9: مبلغ المدة | U9: بدل اعتماد | V9: قيمة الشهر | W9: عدد الشهور | X9: مبلغ المدة | Y9: بدل اعتماد | Z9: قيمة الشهر | AA9: عدد الشهور | AB9: مبلغ المدة | AC9: حافز اداء | AD9: قيمة الشهر | AE9: عدد الشهور | AF9: مبلغ المدة | AG9: حافز اداء | AH9: قيمة الشهر | AI9: عدد الشهور | AJ9: مبلغ المدة | AK9: مكافاة الامتحانات | AL9: عدد الشهور | AM9: مبلغ المدة | AN9: جهود غير عادية | AO9: عدد الشهور | AP9: مبلغ المدة | AQ9: الاجمالى | AR9: التفقيط | AS9: الرقم القومى
A10: م | B10: الاسم رباعى | C10: الرقم القومى | D10: المحكمة | E10: الدائرة | F10: اسم المدعى عليه | G10: رقم الدعوى | H10: تاريخ جلسة الحكم | I10: الفترة المستحق عنها الصرف | K10: اجمالى المبلغ | L10: الاساسي فى
E11: التابعة | I11: من | J11: الى | L11: 2016-06-03 | M11: 2015-06-30 | P11: المستحقة | Q11: المستحقة | S11: المستحقة | T11: المستحقة | W11: المستحقة | X11: المستحقة | AA11: المستحقة | AB11: المستحقة | AE11: المستحقة | AF11: المستحقة | AI11: المستحقة | AJ11: المستحقة | AL11: المستحقة | AM11: المستحقة | AO11: المستحقة | AP11: المستحقة
A12: 1 | B12: محمد 1 | C12: 2521013251237 | D12: محكمة القضاء الادارى باسيوط | E12: سوهاج | F12: محافظة اسيوط - وكيل وزارة التربية والتعليم | G12: 1258لسنة2016 | H12: 2022-05-15 | I12: 2016-08-01 | J12: 2019-08-13 | K12: =AQ12 -> 16197.32 | L12: 486.07 | M12: 420.12 | N12: =L12-M12 -> 65.95 | O12: =N12*50/100 -> 32.975 | P12: 72 | Q12: =P12*O12 -> 2374.2 | R12: =N12*25/100 -> 16.4875 | S12: 72 | T12: =S12*R12 -> 1187.1 | U12: بدل اعتماد معلم ( 50 % ) | V12: =IF(U12="بدل اعتماد معلم ( 50 % )",N12*100/100,IF(U12="بدل اعتماد معلم أول ( 125 % )",N12*125/100,IF(U12="بدل اعتماد معلم أول أ ( 150 % )",N12*150/100,IF(U12="بدل اعتماد معلم خبير ( 175 % )",N12*175/100,IF(U12="بدل اعتماد كبير معلمين ( 200 % )",N12*200/100))))) -> 65.95 | W12: 28 | X12: =W12*V12 -> 1846.6 | Y12: بدل اعتماد معلم أول أ ( 150 % ) | Z12: =IF(Y12="بدل اعتماد معلم ( 50 % )",N12*100/100,IF(Y12="بدل اعتماد معلم أول ( 125 % )",N12*125/100,IF(Y12="بدل اعتماد معلم أول أ ( 150 % )",N12*150/100,IF(Y12="بدل اعتماد معلم خبير ( 175 % )",N12*175/100,IF(Y12="بدل اعتماد كبير معلمين ( 200 % )",N12*200/100))))) -> 98.925 | AA12: 44 | AB12: =AA12*Z12 -> 4352.7 | AC12: حافز اداء معلم ( 75 % ) | AD12: =IF(AC12="حافز اداء معلم ( 75 % )",N12*75/100,IF(AC12="حافز اداء معلم أول ( 50 % )",N12*50/100,IF(AC12="حافز اداء معلم أول أ ( 25 % )",N12*25/100,IF(AC12="حافز اداء معلم خبير ( 25 % )",N12*25/100,IF(AC12="حافز اداء كبير معلمين ( 25 % )",N12*25/100))))) -> 49.4625 | AE12: 28 | AF12: =AE12*AD12 -> 1384.95 | AG12: حافز اداء معلم أول أ ( 25 % ) | AH12: =IF(AG12="حافز اداء معلم ( 75 % )",N12*75/100,IF(AG12="حافز اداء معلم أول ( 50 % )",N12*50/100,IF(AG12="حافز اداء معلم أول أ ( 25 % )",N12*25/100,IF(AG12="حافز اداء معلم خبير ( 25 % )",N12*25/100,IF(AG12="حافز اداء كبير معلمين ( 25 % )",N12*25/100))))) -> 16.4875 | AI12: 44 | AJ12: =AI12*AH12 -> 725.45 | AK12: =N12*10 -> 659.5 | AL12: 72 | AM12: =AK12/12*72 -> 3957 | AN12: =N12*40/100 -> 26.38 | AO12: 14 | AP12: =AO12*AN12 -> 369.32 | AQ12: =AP12+AM12+AJ12+AF12+AB12+X12+T12+Q12 -> 16197.32 | AR12: =NoToTxt(AQ12,"جنيه"," قرش") ->  | AS12: 2521013251237
A13: 2 | B13: محمد 2 | C13: 2570705261984 | D13: محكمة القضاء الادارى باسيوط | E13: اسيوط | F13: محافظة اسيوط - وكيل وزارة التربية والتعليم | G13: 1258لسنة2017 | H13: 2022-05-16 | I13: 2016-08-01 | J13: 2019-08-13 | K13: =AQ13 -> 20497.208 | L13: 500 | M13: 420.12 | N13: =L13-M13 -> 79.88 | O13: 39.94 | P13: 72 | Q13: =P13*O13 -> 2875.68 | R13: 19.97 | S13: 72 | T13: =S13*R13 -> 1437.84 | U13: بدل اعتماد معلم أول ( 125 % ) | V13: 99.85 | W13: 28 | X13: =W13*V13 -> 2795.8 | Y13: بدل اعتماد معلم خبير ( 175 % ) | Z13: 139.79 | AA13: 44 | AB13: =AA13*Z13 -> 6150.76 | AC13: حافز اداء معلم أول ( 50 % ) | AD13: 39.94 | AE13: 28 | AF13: =AE13*AD13 -> 1118.32 | AG13: حافز اداء معلم خبير ( 25 % ) | AH13: 19.97 | AI13: 44 | AJ13: =AI13*AH13 -> 878.68 | AK13: =N13*10 -> 798.8 | AL13: 72 | AM13: =AK13/12*72 -> 4792.8 | AN13: =N13*40/100 -> 31.952 | AO13: 14 | AP13: 447.328 | AQ13: =AP13+AM13+AJ13+AF13+AB13+X13+T13+Q13 -> 20497.208 | AR13: =" فقط "&ArbNum2Text(AQ13, 2,3,"جنيه","جنيهات",1,"قرش","قروش",1) ->  | AS13: 2570705261984
A14: 3 | B14: محمد 3 | C14: 2751026250029 | D14: محكمة القضاء الادارى باسيوط | E14: سوهاج | F14: محافظة اسيوط - وكيل وزارة التربية والتعليم | G14: 1258لسنة2018 | H14: 2022-05-17 | I14: 2016-08-01 | J14: 2019-08-13 | K14: 48135.888 | L14: 600 | M14: 420.12 | N14: 179.88 | O14: 89.94 | P14: 72 | Q14: 6475.68 | R14: 44.97 | S14: 72 | T14: 3237.84 | U14: بدل اعتماد معلم أول أ ( 150 % ) | V14: 269.82 | W14: 28 | X14: 7554.96 | Y14: بدل اعتماد كبير معلمين ( 200 % ) | Z14: 359.76 | AA14: 44 | AB14: 15829.44 | AC14: حافز اداء معلم أول أ ( 25 % ) | AD14: 44.97 | AE14: 28 | AF14: 1259.16 | AG14: حافز اداء كبير معلمين ( 25 % ) | AH14: 44.97 | AI14: 44 | AJ14: 1978.68 | AK14: 1798.8 | AL14: 72 | AM14: 10792.8 | AN14: 71.952 | AO14: 14 | AP14: 1007.328 | AQ14: 48135.888 | AS14: 2751026250029
A15: 4 | B15: محمد 4 | C15: 2751026250029 | D15: محكمة القضاء الادارى باسيوط | E15: اسيوط | F15: محافظة اسيوط - وكيل وزارة التربية والتعليم | G15: 1258لسنة2019 | H15: 2022-05-18 | I15: 2016-08-01 | J15: 2019-08-13 | K15: 38960.248 | L15: 562 | M15: 420.12 | N15: 141.88 | O15: 70.94 | P15: 72 | Q15: 5107.68 | R15: 35.47 | S15: 72 | T15: 2553.84 | U15: بدل اعتماد معلم خبير ( 175 % ) | V15: 248.29 | W15: 28 | X15: 6952.12 | Y15: بدل اعتماد معلم أول أ ( 150 % ) | Z15: 212.82 | AA15: 44 | AB15: 9364.08 | AC15: حافز اداء معلم خبير ( 25 % ) | AD15: 35.47 | AE15: 28 | AF15: 993.16 | AG15: حافز اداء معلم ( 75 % ) | AH15: 106.41 | AI15: 44 | AJ15: 4682.04 | AK15: 1418.8 | AL15: 72 | AM15: 8512.8 | AN15: 56.752 | AO15: 14 | AP15: 794.528 | AQ15: 38960.248 | AS15: 2751026250029
A16: 5 | B16: محمد 5 | C16: 2770124250032 | D16: محكمة القضاء الادارى باسيوط | E16: سوهاج | F16: محافظة اسيوط - وكيل وزارة التربية والتعليم | G16: 1258لسنة2020 | H16: 2022-05-19 | I16: 2016-08-01 | J16: 2019-08-13 | K16: 59385.568 | L16: 659 | M16: 420.12 | N16: 238.88 | O16: 119.44 | P16: 72 | Q16: 8599.68 | R16: 59.72 | S16: 72 | T16: 4299.84 | U16: بدل اعتماد كبير معلمين ( 200 % ) | V16: 477.76 | W16: 28 | X16: 13377.28 | Y16: بدل اعتماد معلم ( 50 % ) | Z16: 238.88 | AA16: 44 | AB16: 10510.72 | AC16: حافز اداء كبير معلمين ( 25 % ) | AD16: 59.72 | AE16: 28 | AF16: 1672.16 | AG16: حافز اداء معلم أول ( 50 % ) | AH16: 119.44 | AI16: 44 | AJ16: 5255.36 | AK16: 2388.8 | AL16: 72 | AM16: 14332.8 | AN16: 95.552 | AO16: 14 | AP16: 1337.728 | AQ16: 59385.568 | AS16: 2770124250032
A17: 6 | B17: محمد 6 | C17: 2770124250032 | D17: محكمة القضاء الادارى باسيوط | E17: اسيوط | F17: محافظة اسيوط - وكيل وزارة التربية والتعليم | G17: 1258لسنة2021 | H17: 2022-05-20 | I17: 2016-08-01 | J17: 2019-08-13 | K17: 28322.998 | L17: 600 | M17: 486.07 | N17: 113.93 | O17: 56.965 | P17: 72 | Q17: 4101.48 | R17: 28.4825 | S17: 72 | T17: 2050.74 | U17: بدل اعتماد معلم أول أ ( 150 % ) | V17: 170.895 | W17: 28 | X17: 4785.06 | Y17: بدل اعتماد معلم أول ( 125 % ) | Z17: 142.4125 | AA17: 44 | AB17: 6266.15 | AC17: حافز اداء معلم ( 75 % ) | AD17: 85.4475 | AE17: 28 | AF17: 2392.53 | AG17: حافز اداء معلم أول أ ( 25 % ) | AH17: 28.4825 | AI17: 44 | AJ17: 1253.23 | AK17: 1139.3 | AL17: 72 | AM17: 6835.8 | AN17: 45.572 | AO17: 14 | AP17: 638.008 | AQ17: 28322.998 | AS17: 2770124250032
A18: 7 | B18: محمد 7 | C18: 2810162500093 | D18: محكمة القضاء الادارى باسيوط | E18: سوهاج | F18: محافظة اسيوط - وكيل وزارة التربية والتعليم | G18: 1258لسنة2022 | H18: 2022-05-21 | I18: 2016-08-01 | J18: 2019-08-13 | K18: 35790 | L18: 650 | M18: 500 | N18: 150 | O18: 75 | P18: 72 | Q18: 5400 | R18: 37.5 | S18: 72 | T18: 2700 | U18: بدل اعتماد معلم ( 50 % ) | V18: 150 | W18: 28 | X18: 4200 | Y18: بدل اعتماد معلم أول أ ( 150 % ) | Z18: 225 | AA18: 44 | AB18: 9900 | AC18: حافز اداء معلم أول ( 50 % ) | AD18: 75 | AE18: 28 | AF18: 2100 | AG18: حافز اداء معلم خبير ( 25 % ) | AH18: 37.5 | AI18: 44 | AJ18: 1650 | AK18: 1500 | AL18: 72 | AM18: 9000 | AN18: 60 | AO18: 14 | AP18: 840 | AQ18: 35790 | AS18: 2810162500093
A19: 8 | B19: محمد 8 | C19: 2850702200069 | D19: محكمة القضاء الادارى باسيوط | E19: المنيا | F19: محافظة اسيوط - وكيل وزارة التربية والتعليم | G19: 1258لسنة2023 | H19: 2022-05-22 | I19: 2016-08-01 | J19: 2019-08-13 | K19: 102276.8 | L19: 653 | M19: 265 | N19: 388 | O19: 194 | P19: 72 | Q19: 13968 | R19: 97 | S19: 72 | T19: 6984 | U19: بدل اعتماد معلم أول ( 125 % ) | V19: 485 | W19: 28 | X19: 13580 | Y19: بدل اعتماد معلم خبير ( 175 % ) | Z19: 679 | AA19: 44 | AB19: 29876 | AC19: حافز اداء معلم ( 75 % ) | AD19: 291 | AE19: 28 | AF19: 8148 | AG19: حافز اداء كبير معلمين ( 25 % ) | AH19: 97 | AI19: 44 | AJ19: 4268 | AK19: 3880 | AL19: 72 | AM19: 23280 | AN19: 155.2 | AO19: 14 | AP19: 2172.8 | AQ19: 102276.8 | AS19: 2850702200069
A20: 9 | B20: محمد 9 | C20: 2940222501431 | D20: محكمة القضاء الادارى باسيوط | E20: اسيوط | F20: محافظة اسيوط - وكيل وزارة التربية والتعليم | G20: 1258لسنة2024 | H20: 2022-05-23 | I20: 2016-08-01 | J20: 2019-08-13 | K20: 56947.2 | L20: 450 | M20: 258 | N20: 192 | O20: 96 | P20: 72 | Q20: 6912 | R20: 48 | S20: 72 | T20: 3456 | U20: بدل اعتماد معلم أول أ ( 150 % ) | V20: 288 | W20: 28 | X20: 8064 | Y20: بدل اعتماد كبير معلمين ( 200 % ) | Z20: 384 | AA20: 44 | AB20: 16896 | AC20: حافز اداء معلم أول ( 50 % ) | AD20: 96 | AE20: 28 | AF20: 2688 | AG20: حافز اداء معلم ( 75 % ) | AH20: 144 | AI20: 44 | AJ20: 6336 | AK20: 1920 | AL20: 72 | AM20: 11520 | AN20: 76.8 | AO20: 14 | AP20: 1075.2 | AQ20: 56947.2 | AS20: 2940222501431
A21: 10 | B21: محمد 10 | C21: 3010707251792 | D21: محكمة القضاء الادارى باسيوط | E21: سوهاج | F21: محافظة اسيوط - وكيل وزارة التربية والتعليم | G21: 1258لسنة2025 | H21: 2022-05-24 | I21: 2016-08-01 | J21: 2019-08-13 | K21: 79343.6 | L21: 960 | M21: 659 | N21: 301 | O21: 150.5 | P21: 72 | Q21: 10836 | R21: 75.25 | S21: 72 | T21: 5418 | U21: بدل اعتماد معلم خبير ( 175 % ) | V21: 526.75 | W21: 28 | X21: 14749 | Y21: بدل اعتماد معلم أول أ ( 150 % ) | Z21: 451.5 | AA21: 44 | AB21: 19866 | AC21: حافز اداء معلم أول أ ( 25 % ) | AD21: 75.25 | AE21: 28 | AF21: 2107 | AG21: حافز اداء معلم أول ( 50 % ) | AH21: 150.5 | AI21: 44 | AJ21: 6622 | AK21: 3010 | AL21: 72 | AM21: 18060 | AN21: 120.4 | AO21: 14 | AP21: 1685.6 | AQ21: 79343.6 | AS21: 3010707251792
A22: 11 | B22: محمد 11 | C22: 20502062500271 | D22: محكمة القضاء الادارى باسيوط | E22: اسيوط | F22: محافظة اسيوط - وكيل وزارة التربية والتعليم | G22: 1258لسنة2026 | H22: 2022-05-25 | I22: 2016-08-01 | J22: 2019-08-13 | K22: 33264 | L22: 540 | M22: 400 | N22: 140 | O22: 70 | P22: 72 | Q22: 5040 | R22: 35 | S22: 72 | T22: 2520 | U22: بدل اعتماد كبير معلمين ( 200 % ) | V22: 280 | W22: 28 | X22: 7840 | Y22: بدل اعتماد معلم ( 50 % ) | Z22: 140 | AA22: 44 | AB22: 6160 | AC22: حافز اداء معلم خبير ( 25 % ) | AD22: 35 | AE22: 28 | AF22: 980 | AG22: حافز اداء معلم أول أ ( 25 % ) | AH22: 35 | AI22: 44 | AJ22: 1540 | AK22: 1400 | AL22: 72 | AM22: 8400 | AN22: 56 | AO22: 14 | AP22: 784 | AQ22: 33264 | AS22: 20502062500271
A23: 12 | B23: محمد 12 | C23: 24106022601893 | D23: محكمة القضاء الادارى باسيوط | E23: سوهاج | F23: محافظة اسيوط - وكيل وزارة التربية والتعليم | G23: 1258لسنة2027 | H23: 2022-05-26 | I23: 2016-08-01 | J23: 2019-08-13 | K23: 31671 | L23: 500 | M23: 365 | N23: 135 | O23: 67.5 | P23: 72 | Q23: 4860 | R23: 33.75 | S23: 72 | T23: 2430 | U23: بدل اعتماد معلم أول أ ( 150 % ) | V23: 202.5 | W23: 28 | X23: 5670 | Y23: بدل اعتماد معلم أول ( 125 % ) | Z23: 168.75 | AA23: 44 | AB23: 7425 | AC23: حافز اداء كبير معلمين ( 25 % ) | AD23: 33.75 | AE23: 28 | AF23: 945 | AG23: حافز اداء معلم خبير ( 25 % ) | AH23: 33.75 | AI23: 44 | AJ23: 1485 | AK23: 1350 | AL23: 72 | AM23: 8100 | AN23: 54 | AO23: 14 | AP23: 756 | AQ23: 31671 | AS23: 24106022601893
A24: 13 | B24: محمد 13 | C24: 24106122500512 | D24: محكمة القضاء الادارى باسيوط | E24: اسيوط | F24: محافظة اسيوط - وكيل وزارة التربية والتعليم | G24: 1258لسنة2028 | H24: 2022-05-27 | I24: 2016-08-01 | J24: 2019-08-13 | K24: 28633.2 | L24: 760 | M24: 653 | N24: 107 | O24: 53.5 | P24: 72 | Q24: 3852 | R24: 26.75 | S24: 72 | T24: 1926 | U24: بدل اعتماد معلم ( 50 % ) | V24: 107 | W24: 28 | X24: 2996 | Y24: بدل اعتماد معلم أول أ ( 150 % ) | Z24: 160.5 | AA24: 44 | AB24: 7062 | AC24: حافز اداء معلم ( 75 % ) | AD24: 80.25 | AE24: 28 | AF24: 2247 | AG24: حافز اداء معلم ( 75 % ) | AH24: 80.25 | AI24: 44 | AJ24: 3531 | AK24: 1070 | AL24: 72 | AM24: 6420 | AN24: 42.8 | AO24: 14 | AP24: 599.2 | AQ24: 28633.2 | AS24: 24106122500512
A25: 14 | B25: محمد 14 | C25: 24204242500038 | D25: محكمة القضاء الادارى باسيوط | E25: سوهاج | F25: محافظة اسيوط - وكيل وزارة التربية والتعليم | G25: 1258لسنة2029 | H25: 2022-05-28 | I25: 2016-08-01 | J25: 2019-08-13 | K25: 44689.2 | L25: 425 | M25: 258 | N25: 167 | O25: 83.5 | P25: 72 | Q25: 6012 | R25: 41.75 | S25: 72 | T25: 3006 | U25: بدل اعتماد معلم أول ( 125 % ) | V25: 208.75 | W25: 28 | X25: 5845 | Y25: بدل اعتماد معلم خبير ( 175 % ) | Z25: 292.25 | AA25: 44 | AB25: 12859 | AC25: حافز اداء معلم أول ( 50 % ) | AD25: 83.5 | AE25: 28 | AF25: 2338 | AG25: حافز اداء معلم أول ( 50 % ) | AH25: 83.5 | AI25: 44 | AJ25: 3674 | AK25: 1670 | AL25: 72 | AM25: 10020 | AN25: 66.8 | AO25: 14 | AP25: 935.2 | AQ25: 44689.2 | AS25: 24204242500038
A26: 15 | B26: محمد 15 | C26: 24307252501532 | D26: محكمة القضاء الادارى باسيوط | E26: المنيا | F26: محافظة اسيوط - وكيل وزارة التربية والتعليم | G26: 1258لسنة2030 | H26: 2022-05-29 | I26: 2016-08-01 | J26: 2019-08-13 | K26: 66739.2 | L26: 800 | M26: 563 | N26: 237 | O26: 118.5 | P26: 72 | Q26: 8532 | R26: 59.25 | S26: 72 | T26: 4266 | U26: بدل اعتماد معلم أول أ ( 150 % ) | V26: 355.5 | W26: 28 | X26: 9954 | Y26: بدل اعتماد كبير معلمين ( 200 % ) | Z26: 474 | AA26: 44 | AB26: 20856 | AC26: حافز اداء معلم ( 75 % ) | AD26: 177.75 | AE26: 28 | AF26: 4977 | AG26: حافز اداء معلم أول أ ( 25 % ) | AH26: 59.25 | AI26: 44 | AJ26: 2607 | AK26: 2370 | AL26: 72 | AM26: 14220 | AN26: 94.8 | AO26: 14 | AP26: 1327.2 | AQ26: 66739.2 | AS26: 24307252501532
A27: 16 | B27: محمد 16 | C27: 24410222500057 | D27: محكمة القضاء الادارى باسيوط | E27: سوهاج | F27: محافظة اسيوط - وكيل وزارة التربية والتعليم | G27: 1258لسنة2031 | H27: 2022-05-30 | I27: 2016-08-01 | J27: 2019-08-13 | K27: 62743.032 | L27: 486.07 | M27: 222 | N27: 264.07 | O27: 132.035 | P27: 72 | Q27: 9506.52 | R27: 66.0175 | S27: 72 | T27: 4753.26 | U27: بدل اعتماد معلم خبير ( 175 % ) | V27: 462.1225 | W27: 28 | X27: 12939.43 | Y27: بدل اعتماد معلم ( 50 % ) | Z27: 264.07 | AA27: 44 | AB27: 11619.08 | AC27: حافز اداء معلم أول ( 50 % ) | AD27: 132.035 | AE27: 28 | AF27: 3696.98 | AG27: حافز اداء معلم خبير ( 25 % ) | AH27: 66.0175 | AI27: 44 | AJ27: 2904.77 | AK27: 2640.7 | AL27: 72 | AM27: 15844.2 | AN27: 105.628 | AO27: 14 | AP27: 1478.792 | AQ27: 62743.032 | AS27: 24410222500057
A28: 17 | B28: محمد 17 | C28: 24601312500048 | D28: محكمة القضاء الادارى باسيوط | E28: اسيوط | F28: محافظة اسيوط - وكيل وزارة التربية والتعليم | G28: 1258لسنة2032 | H28: 2022-05-31 | I28: 2016-08-01 | J28: 2019-08-13 | K28: 25836.998 | L28: 590 | M28: 486.07 | N28: 103.93 | O28: 51.965 | P28: 72 | Q28: 3741.48 | R28: 25.9825 | S28: 72 | T28: 1870.74 | U28: بدل اعتماد كبير معلمين ( 200 % ) | V28: 207.86 | W28: 28 | X28: 5820.08 | Y28: بدل اعتماد معلم أول ( 125 % ) | Z28: 129.9125 | AA28: 44 | AB28: 5716.15 | AC28: حافز اداء معلم أول أ ( 25 % ) | AD28: 25.9825 | AE28: 28 | AF28: 727.51 | AG28: حافز اداء كبير معلمين ( 25 % ) | AH28: 25.9825 | AI28: 44 | AJ28: 1143.23 | AK28: 1039.3 | AL28: 72 | AM28: 6235.8 | AN28: 41.572 | AO28: 14 | AP28: 582.008 | AQ28: 25836.998 | AS28: 24601312500048
A29: 18 | B29: محمد 18 | C29: 24604262500385 | D29: محكمة القضاء الادارى باسيوط | E29: اسيوط | F29: محافظة اسيوط - وكيل وزارة التربية والتعليم | G29: 1258لسنة2033 | H29: 2022-06-01 | I29: 2016-08-01 | J29: 2019-08-13 | K29: 40576 | L29: 660 | M29: 500 | N29: 160 | O29: 80 | P29: 72 | Q29: 5760 | R29: 40 | S29: 72 | T29: 2880 | U29: بدل اعتماد معلم ( 50 % ) | V29: 160 | W29: 28 | X29: 4480 | Y29: بدل اعتماد معلم أول أ ( 150 % ) | Z29: 240 | AA29: 44 | AB29: 10560 | AC29: حافز اداء معلم خبير ( 25 % ) | AD29: 40 | AE29: 28 | AF29: 1120 | AG29: حافز اداء معلم ( 75 % ) | AH29: 120 | AI29: 44 | AJ29: 5280 | AK29: 1600 | AL29: 72 | AM29: 9600 | AN29: 64 | AO29: 14 | AP29: 896 | AQ29: 40576 | AS29: 24604262500385
A30: البند المطلوب تعزيزة : بند بدل المعلم 4 / 45 وبند بدل الاعتماد 4 / 46 وبند حافز الاداء 3 / 23 وبند حافز الاثابة 3 / 3 وبند المكافاة 3 / 14 وبند الجهود غير العادية للمعلمين بادارة اسيوط التعليمية ومدارسها الصادرة لهم احكام قضائية وبياناتهم كالاتى
A31: 19 | B31: محمد 19 | C31: 24605102501360 | D31: محكمة القضاء الادارى باسيوط | E31: سوهاج | F31: محافظة اسيوط - وكيل وزارة التربية والتعليم | G31: 1230لسنة2016 | H31: 2022-05-01 | I31: 2016-08-01 | J31: 2019-08-13 | K31: 99688.6 | L31: 659 | M31: 258 | N31: 401 | O31: 200.5 | P31: 72 | Q31: 14436 | R31: 100.25 | S31: 72 | T31: 7218 | U31: بدل اعتماد معلم أول أ ( 150 % ) | V31: 601.5 | W31: 28 | X31: 16842 | Y31: بدل اعتماد معلم أول ( 125 % ) | Z31: 501.25 | AA31: 44 | AB31: 22055 | AC31: حافز اداء معلم ( 75 % ) | AD31: 300.75 | AE31: 28 | AF31: 8421 | AG31: حافز اداء معلم أول أ ( 25 % ) | AH31: 100.25 | AI31: 44 | AJ31: 4411 | AK31: 4010 | AL31: 72 | AM31: 24060 | AN31: 160.4 | AO31: 14 | AP31: 2245.6 | AQ31: 99688.6 | AS31: 24605102501360
A32: 20 | B32: محمد 20 | C32: 24811262500127 | D32: محكمة القضاء الادارى باسيوط | E32: اسيوط | F32: محافظة اسيوط - وكيل وزارة التربية والتعليم | G32: 1230لسنة2017 | H32: 2022-05-02 | I32: 2016-08-02 | J32: 2019-08-14 | K32: -2147.4 | L32: 650 | M32: 659 | N32: -9 | O32: -4.5 | P32: 72 | Q32: -324 | R32: -2.25 | S32: 72 | T32: -162 | U32: بدل اعتماد معلم ( 50 % ) | V32: -9 | W32: 28 | X32: -252 | Y32: بدل اعتماد معلم أول أ ( 150 % ) | Z32: -13.5 | AA32: 44 | AB32: -594 | AC32: حافز اداء معلم أول ( 50 % ) | AD32: -4.5 | AE32: 28 | AF32: -126 | AG32: حافز اداء معلم خبير ( 25 % ) | AH32: -2.25 | AI32: 44 | AJ32: -99 | AK32: -90 | AL32: 72 | AM32: -540 | AN32: -3.6 | AO32: 14 | AP32: -50.4 | AQ32: -2147.4 | AS32: 24811262500127
A33: 21 | B33: محمد 21 | C33: 24901302500817 | D33: محكمة القضاء الادارى باسيوط | E33: سوهاج | F33: محافظة اسيوط - وكيل وزارة التربية والتعليم | G33: 1230لسنة2018 | H33: 2022-05-03 | I33: 2016-08-03 | J33: 2019-08-15 | K33: 26360 | L33: 500 | M33: 400 | N33: 100 | O33: 50 | P33: 72 | Q33: 3600 | R33: 25 | S33: 72 | T33: 1800 | U33: بدل اعتماد معلم أول ( 125 % ) | V33: 125 | W33: 28 | X33: 3500 | Y33: بدل اعتماد معلم خبير ( 175 % ) | Z33: 175 | AA33: 44 | AB33: 7700 | AC33: حافز اداء معلم ( 75 % ) | AD33: 75 | AE33: 28 | AF33: 2100 | AG33: حافز اداء كبير معلمين ( 25 % ) | AH33: 25 | AI33: 44 | AJ33: 1100 | AK33: 1000 | AL33: 72 | AM33: 6000 | AN33: 40 | AO33: 14 | AP33: 560 | AQ33: 26360 | AS33: 24901302500817
A34: 22 | B34: محمد 22 | C34: 25803082501495 | D34: محكمة القضاء الادارى باسيوط | E34: اسيوط | F34: محافظة اسيوط - وكيل وزارة التربية والتعليم | G34: 1230لسنة2019 | H34: 2022-05-04 | I34: 2016-08-04 | J34: 2019-08-16 | K34: 30582.282 | L34: 486.07 | M34: 365 | N34: 121.07 | O34: 60.535 | P34: 72 | Q34: 4358.52 | R34: 30.2675 | S34: 72 | T34: 2179.26 | U34: بدل اعتماد معلم أول أ ( 150 % ) | V34: 181.605 | W34: 28 | X34: 5084.94 | Y34: بدل اعتماد معلم ( 50 % ) | Z34: 121.07 | AA34: 44 | AB34: 5327.08 | AC34: حافز اداء معلم أول ( 50 % ) | AD34: 60.535 | AE34: 28 | AF34: 1694.98 | AG34: حافز اداء معلم ( 75 % ) | AH34: 90.8025 | AI34: 44 | AJ34: 3995.31 | AK34: 1210.7 | AL34: 72 | AM34: 7264.2 | AN34: 48.428 | AO34: 14 | AP34: 677.992 | AQ34: 30582.282 | AS34: 25803082501495
A35: 23 | B35: محمد 23 | C35: 24905252501219 | D35: محكمة القضاء الادارى باسيوط | E35: سوهاج | F35: محافظة اسيوط - وكيل وزارة التربية والتعليم | G35: 1230لسنة2020 | H35: 2022-05-05 | I35: 2016-08-05 | J35: 2019-08-17 | K35: 50520 | L35: 650 | M35: 450 | N35: 200 | O35: 100 | P35: 72 | Q35: 7200 | R35: 50 | S35: 72 | T35: 3600 | U35: بدل اعتماد معلم خبير ( 175 % ) | V35: 350 | W35: 28 | X35: 9800 | Y35: بدل اعتماد معلم أول ( 125 % ) | Z35: 250 | AA35: 44 | AB35: 11000 | AC35: حافز اداء معلم أول أ ( 25 % ) | AD35: 50 | AE35: 28 | AF35: 1400 | AG35: حافز اداء معلم أول ( 50 % ) | AH35: 100 | AI35: 44 | AJ35: 4400 | AK35: 2000 | AL35: 72 | AM35: 12000 | AN35: 80 | AO35: 14 | AP35: 1120 | AQ35: 50520 | AS35: 24905252501219
A36: 24 | B36: محمد 24 | C36: 25108122500047 | D36: محكمة القضاء الادارى باسيوط | E36: المنيا | F36: محافظة اسيوط - وكيل وزارة التربية والتعليم | G36: 1230لسنة2021 | H36: 2022-05-06 | I36: 2016-08-06 | J36: 2019-08-18 | K36: 11580 | L36: 450 | M36: 400 | N36: 50 | O36: 25 | P36: 72 | Q36: 1800 | R36: 12.5 | S36: 72 | T36: 900 | U36: بدل اعتماد معلم ( 50 % ) | V36: 50 | W36: 28 | X36: 1400 | Y36: بدل اعتماد معلم أول أ ( 150 % ) | Z36: 75 | AA36: 44 | AB36: 3300 | AC36: حافز اداء معلم خبير ( 25 % ) | AD36: 12.5 | AE36: 28 | AF36: 350 | AG36: حافز اداء معلم أول أ ( 25 % ) | AH36: 12.5 | AI36: 44 | AJ36: 550 | AK36: 500 | AL36: 72 | AM36: 3000 | AN36: 20 | AO36: 14 | AP36: 280 | AQ36: 11580 | AS36: 25108122500047
A37: 25 | B37: محمد 25 | C37: 25206172500945 | D37: محكمة القضاء الادارى باسيوط | E37: سوهاج | F37: محافظة اسيوط - وكيل وزارة التربية والتعليم | G37: 1230لسنة2022 | H37: 2022-05-06 | I37: 2016-08-06 | J37: 2019-08-18 | K37: 49920 | L37: 450 | M37: 250 | N37: 200 | O37: 100 | P37: 72 | Q37: 7200 | R37: 50 | S37: 72 | T37: 3600 | U37: بدل اعتماد معلم أول ( 125 % ) | V37: 250 | W37: 28 | X37: 7000 | Y37: بدل اعتماد معلم خبير ( 175 % ) | Z37: 350 | AA37: 44 | AB37: 15400 | AC37: حافز اداء كبير معلمين ( 25 % ) | AD37: 50 | AE37: 28 | AF37: 1400 | AG37: حافز اداء معلم خبير ( 25 % ) | AH37: 50 | AI37: 44 | AJ37: 2200 | AK37: 2000 | AL37: 72 | AM37: 12000 | AN37: 80 | AO37: 14 | AP37: 1120 | AQ37: 49920 | AS37: 25206172500945
A38: 26 | B38: محمد 26 | C38: 25210022500341 | D38: محكمة القضاء الادارى باسيوط | E38: اسيوط | F38: محافظة اسيوط - وكيل وزارة التربية والتعليم | G38: 1230لسنة2023 | H38: 2022-05-06 | I38: 2016-08-06 | J38: 2019-08-18 | K38: 48697.088 | L38: 659 | M38: 486.07 | N38: 172.93 | O38: 86.465 | P38: 72 | Q38: 6225.48 | R38: 43.2325 | S38: 72 | T38: 3112.74 | U38: بدل اعتماد معلم أول أ ( 150 % ) | V38: 259.395 | W38: 28 | X38: 7263.06 | Y38: بدل اعتماد كبير معلمين ( 200 % ) | Z38: 345.86 | AA38: 44 | AB38: 15217.84 | AC38: حافز اداء معلم ( 75 % ) | AD38: 129.6975 | AE38: 28 | AF38: 3631.53 | AG38: حافز اداء كبير معلمين ( 25 % ) | AH38: 43.2325 | AI38: 44 | AJ38: 1902.23 | AK38: 1729.3 | AL38: 72 | AM38: 10375.8 | AN38: 69.172 | AO38: 14 | AP38: 968.408 | AQ38: 48697.088 | AS38: 25210022500341
A39: 27 | B39: محمد 27 | C39: 25310292500819 | D39: محكمة القضاء الادارى باسيوط | E39: سوهاج | F39: محافظة اسيوط - وكيل وزارة التربية والتعليم | G39: 1230لسنة2024 | H39: 2022-05-06 | I39: 2016-08-06 | J39: 2019-08-18 | K39: 33792 | L39: 620 | M39: 500 | N39: 120 | O39: 60 | P39: 72 | Q39: 4320 | R39: 30 | S39: 72 | T39: 2160 | U39: بدل اعتماد معلم خبير ( 175 % ) | V39: 210 | W39: 28 | X39: 5880 | Y39: بدل اعتماد معلم أول أ ( 150 % ) | Z39: 180 | AA39: 44 | AB39: 7920 | AC39: حافز اداء معلم أول ( 50 % ) | AD39: 60 | AE39: 28 | AF39: 1680 | AG39: حافز اداء معلم ( 75 % ) | AH39: 90 | AI39: 44 | AJ39: 3960 | AK39: 1200 | AL39: 72 | AM39: 7200 | AN39: 48 | AO39: 14 | AP39: 672 | AQ39: 33792 | AS39: 25310292500819
A40: 28 | B40: محمد 28 | C40: 25311252501843 | D40: محكمة القضاء الادارى باسيوط | E40: اسيوط | F40: محافظة اسيوط - وكيل وزارة التربية والتعليم | G40: 1230لسنة2025 | H40: 2022-05-06 | I40: 2016-08-06 | J40: 2019-08-18 | K40: 24860 | L40: 365 | M40: 265 | N40: 100 | O40: 50 | P40: 72 | Q40: 3600 | R40: 25 | S40: 72 | T40: 1800 | U40: بدل اعتماد كبير معلمين ( 200 % ) | V40: 200 | W40: 28 | X40: 5600 | Y40: بدل اعتماد معلم ( 50 % ) | Z40: 100 | AA40: 44 | AB40: 4400 | AC40: حافز اداء معلم أول أ ( 25 % ) | AD40: 25 | AE40: 28 | AF40: 700 | AG40: حافز اداء معلم أول ( 50 % ) | AH40: 50 | AI40: 44 | AJ40: 2200 | AK40: 1000 | AL40: 72 | AM40: 6000 | AN40: 40 | AO40: 14 | AP40: 560 | AQ40: 24860 | AS40: 25311252501843
A41: 29 | B41: محمد 29 | C41: 25510142501069 | D41: محكمة القضاء الادارى باسيوط | E41: سوهاج | F41: محافظة اسيوط - وكيل وزارة التربية والتعليم | G41: 1230لسنة2026 | H41: 2022-05-06 | I41: 2016-08-06 | J41: 2019-08-18 | K41: 92667 | L41: 653 | M41: 258 | N41: 395 | O41: 197.5 | P41: 72 | Q41: 14220 | R41: 98.75 | S41: 72 | T41: 7110 | U41: بدل اعتماد معلم أول أ ( 150 % ) | V41: 592.5 | W41: 28 | X41: 16590 | Y41: بدل اعتماد معلم أول ( 125 % ) | Z41: 493.75 | AA41: 44 | AB41: 21725 | AC41: حافز اداء معلم خبير ( 25 % ) | AD41: 98.75 | AE41: 28 | AF41: 2765 | AG41: حافز اداء معلم أول أ ( 25 % ) | AH41: 98.75 | AI41: 44 | AJ41: 4345 | AK41: 3950 | AL41: 72 | AM41: 23700 | AN41: 158 | AO41: 14 | AP41: 2212 | AQ41: 92667 | AS41: 25510142501069
A42: 30 | B42: محمد 30 | C42: 25511082501346 | D42: محكمة القضاء الادارى باسيوط | E42: المنيا | F42: محافظة اسيوط - وكيل وزارة التربية والتعليم | G42: 1230لسنة2027 | H42: 2022-05-06 | I42: 2016-08-06 | J42: 2019-08-18 | K42: 23160 | L42: 520 | M42: 420 | N42: 100 | O42: 50 | P42: 72 | Q42: 3600 | R42: 25 | S42: 72 | T42: 1800 | U42: بدل اعتماد معلم ( 50 % ) | V42: 100 | W42: 28 | X42: 2800 | Y42: بدل اعتماد معلم أول أ ( 150 % ) | Z42: 150 | AA42: 44 | AB42: 6600 | AC42: حافز اداء كبير معلمين ( 25 % ) | AD42: 25 | AE42: 28 | AF42: 700 | AG42: حافز اداء معلم خبير ( 25 % ) | AH42: 25 | AI42: 44 | AJ42: 1100 | AK42: 1000 | AL42: 72 | AM42: 6000 | AN42: 40 | AO42: 14 | AP42: 560 | AQ42: 23160 | AS42: 25511082501346
A43: 31 | B43: محمد 31 | C43: 25512152400816 | D43: محكمة القضاء الادارى باسيوط | E43: سوهاج | F43: محافظة اسيوط - وكيل وزارة التربية والتعليم | G43: 1230لسنة2028 | H43: 2022-05-06 | I43: 2016-08-06 | J43: 2019-08-18 | K43: 42966.8 | L43: 563 | M43: 400 | N43: 163 | O43: 81.5 | P43: 72 | Q43: 5868 | R43: 40.75 | S43: 72 | T43: 2934 | U43: بدل اعتماد معلم أول ( 125 % ) | V43: 203.75 | W43: 28 | X43: 5705 | Y43: بدل اعتماد معلم خبير ( 175 % ) | Z43: 285.25 | AA43: 44 | AB43: 12551 | AC43: حافز اداء معلم ( 75 % ) | AD43: 122.25 | AE43: 28 | AF43: 3423 | AG43: حافز اداء كبير معلمين ( 25 % ) | AH43: 40.75 | AI43: 44 | AJ43: 1793 | AK43: 1630 | AL43: 72 | AM43: 9780 | AN43: 65.2 | AO43: 14 | AP43: 912.8 | AQ43: 42966.8 | AS43: 25512152400816
A44: 32 | B44: محمد 32 | C44: 25801172501751 | D44: محكمة القضاء الادارى باسيوط | E44: اسيوط | F44: محافظة اسيوط - وكيل وزارة التربية والتعليم | G44: 1230لسنة2029 | H44: 2022-05-06 | I44: 2016-08-06 | J44: 2019-08-18 | K44: 25211 | L44: 450 | M44: 365 | N44: 85 | O44: =N44*50/100 -> 42.5 | P44: 72 | Q44: 3060 | R44: =N44*25/100 -> 21.25 | S44: 72 | T44: 1530 | U44: بدل اعتماد معلم أول أ ( 150 % ) | V44: =IF(U44="بدل اعتماد معلم ( 50 % )",N44*100/100,IF(U44="بدل اعتماد معلم أول ( 125 % )",N44*125/100,IF(U44="بدل اعتماد معلم أول أ ( 150 % )",N44*150/100,IF(U44="بدل اعتماد معلم خبير ( 175 % )",N44*175/100,IF(U44="بدل اعتماد كبير معلمين ( 200 % )",N44*200/100))))) -> 127.5 | W44: 28 | X44: 3570 | Y44: بدل اعتماد كبير معلمين ( 200 % ) | Z44: =IF(Y44="بدل اعتماد معلم ( 50 % )",N44*100/100,IF(Y44="بدل اعتماد معلم أول ( 125 % )",N44*125/100,IF(Y44="بدل اعتماد معلم أول أ ( 150 % )",N44*150/100,IF(Y44="بدل اعتماد معلم خبير ( 175 % )",N44*175/100,IF(Y44="بدل اعتماد كبير معلمين ( 200 % )",N44*200/100))))) -> 170 | AA44: 44 | AB44: 7480 | AC44: حافز اداء معلم أول ( 50 % ) | AD44: =IF(AC44="حافز اداء معلم ( 75 % )",N44*75/100,IF(AC44="حافز اداء معلم أول ( 50 % )",N44*50/100,IF(AC44="حافز اداء معلم أول أ ( 25 % )",N44*25/100,IF(AC44="حافز اداء معلم خبير ( 25 % )",N44*25/100,IF(AC44="حافز اداء كبير معلمين ( 25 % )",N44*25/100))))) -> 42.5 | AE44: 28 | AF44: 1190 | AG44: حافز اداء معلم ( 75 % ) | AH44: =IF(AG44="حافز اداء معلم ( 75 % )",N44*75/100,IF(AG44="حافز اداء معلم أول ( 50 % )",N44*50/100,IF(AG44="حافز اداء معلم أول أ ( 25 % )",N44*25/100,IF(AG44="حافز اداء معلم خبير ( 25 % )",N44*25/100,IF(AG44="حافز اداء كبير معلمين ( 25 % )",N44*25/100))))) -> 63.75 | AI44: 44 | AJ44: 2805 | AK44: 850 | AL44: 72 | AM44: 5100 | AN44: 34 | AO44: 14 | AP44: 476 | AQ44: 25211 | AS44: 25801172501751
A45: 33 | B45: محمد 33 | C45: 25802162601273 | D45: محكمة القضاء الادارى باسيوط | E45: سوهاج | F45: محافظة اسيوط - وكيل وزارة التربية والتعليم | G45: 1230لسنة2030 | H45: 2022-05-06 | I45: 2016-08-06 | J45: 2019-08-18 | K45: 35586 | L45: 555 | M45: 420 | N45: 135 | O45: 67.5 | P45: 72 | Q45: 4860 | R45: 33.75 | S45: 72 | T45: 2430 | U45: بدل اعتماد معلم خبير ( 175 % ) | V45: 236.25 | W45: 28 | X45: 6615 | Y45: بدل اعتماد معلم أول أ ( 150 % ) | Z45: 202.5 | AA45: 44 | AB45: 8910 | AC45: حافز اداء معلم أول أ ( 25 % ) | AD45: 33.75 | AE45: 28 | AF45: 945 | AG45: حافز اداء معلم أول ( 50 % ) | AH45: 67.5 | AI45: 44 | AJ45: 2970 | AK45: 1350 | AL45: 72 | AM45: 8100 | AN45: 54 | AO45: 14 | AP45: 756 | AQ45: 35586 | AS45: 25802162601273
A46: 34 | B46: محمد 34 | C46: 25602012501999 | D46: محكمة القضاء الادارى باسيوط | E46: اسيوط | F46: محافظة اسيوط - وكيل وزارة التربية والتعليم | G46: 1230لسنة2031 | H46: 2022-05-06 | I46: 2016-08-06 | J46: 2019-08-18 | K46: 73656 | L46: 568 | M46: 258 | N46: 310 | O46: 155 | P46: 72 | Q46: 11160 | R46: 77.5 | S46: 72 | T46: 5580 | U46: بدل اعتماد كبير معلمين ( 200 % ) | V46: 620 | W46: 28 | X46: 17360 | Y46: بدل اعتماد معلم ( 50 % ) | Z46: 310 | AA46: 44 | AB46: 13640 | AC46: حافز اداء معلم خبير ( 25 % ) | AD46: 77.5 | AE46: 28 | AF46: 2170 | AG46: حافز اداء معلم أول أ ( 25 % ) | AH46: 77.5 | AI46: 44 | AJ46: 3410 | AK46: 3100 | AL46: 72 | AM46: 18600 | AN46: 124 | AO46: 14 | AP46: 1736 | AQ46: 73656 | AS46: 25602012501999
A47: 35 | B47: محمد 35 | C47: 25602242500052 | D47: محكمة القضاء الادارى باسيوط | E47: سوهاج | F47: محافظة اسيوط - وكيل وزارة التربية والتعليم | G47: 1230لسنة2032 | H47: 2022-05-06 | I47: 2016-08-06 | J47: 2019-08-18 | K47: 34017 | L47: 425 | M47: 280 | N47: 145 | O47: 72.5 | P47: 72 | Q47: 5220 | R47: 36.25 | S47: 72 | T47: 2610 | U47: بدل اعتماد معلم أول أ ( 150 % ) | V47: 217.5 | W47: 28 | X47: 6090 | Y47: بدل اعتماد معلم أول ( 125 % ) | Z47: 181.25 | AA47: 44 | AB47: 7975 | AC47: حافز اداء كبير معلمين ( 25 % ) | AD47: 36.25 | AE47: 28 | AF47: 1015 | AG47: حافز اداء معلم خبير ( 25 % ) | AH47: 36.25 | AI47: 44 | AJ47: 1595 | AK47: 1450 | AL47: 72 | AM47: 8700 | AN47: 58 | AO47: 14 | AP47: 812 | AQ47: 34017 | AS47: 25602242500052
A48: 36 | B48: محمد 36 | C48: 25609142500964 | D48: محكمة القضاء الادارى باسيوط | E48: المنيا | F48: محافظة اسيوط - وكيل وزارة التربية والتعليم | G48: 1230لسنة2033 | H48: 2022-05-06 | I48: 2016-08-06 | J48: 2019-08-18 | K48: 3438.4 | L48: 236 | M48: 222 | N48: 14 | O48: 7 | P48: 72 | Q48: 504 | R48: 3.5 | S48: 72 | T48: 252 | U48: بدل اعتماد معلم ( 50 % ) | V48: 14 | W48: 28 | X48: 392 | Y48: بدل اعتماد معلم أول أ ( 150 % ) | Z48: 21 | AA48: 44 | AB48: 924 | AC48: حافز اداء معلم ( 75 % ) | AD48: 10.5 | AE48: 28 | AF48: 294 | AG48: حافز اداء كبير معلمين ( 25 % ) | AH48: 3.5 | AI48: 44 | AJ48: 154 | AK48: 140 | AL48: 72 | AM48: 840 | AN48: 5.6 | AO48: 14 | AP48: 78.4 | AQ48: 3438.4 | AS48: 25609142500964
A49: 37 | B49: محمد 37 | C49: 25610182501252 | D49: محكمة القضاء الادارى باسيوط | E49: سوهاج | F49: محافظة اسيوط - وكيل وزارة التربية والتعليم | G49: 1230لسنة2034 | H49: 2022-05-06 | I49: 2016-08-06 | J49: 2019-08-18 | K49: 58522.762 | L49: 486.07 | M49: 258 | N49: 228.07 | O49: 114.035 | P49: 72 | Q49: 8210.52 | R49: 57.0175 | S49: 72 | T49: 4105.26 | U49: بدل اعتماد معلم أول ( 125 % ) | V49: 285.0875 | W49: 28 | X49: 7982.45 | Y49: بدل اعتماد معلم خبير ( 175 % ) | Z49: 399.1225 | AA49: 44 | AB49: 17561.39 | AC49: حافز اداء معلم أول ( 50 % ) | AD49: 114.035 | AE49: 28 | AF49: 3192.98 | AG49: حافز اداء كبير معلمين ( 25 % ) | AH49: 57.0175 | AI49: 44 | AJ49: 2508.77 | AK49: 2280.7 | AL49: 72 | AM49: 13684.2 | AN49: 91.228 | AO49: 14 | AP49: 1277.192 | AQ49: 58522.762 | AS49: 25610182501252
A50: 38 | B50: محمد 38 | C50: 25808132501396 | D50: محكمة القضاء الادارى باسيوط | E50: اسيوط | F50: محافظة اسيوط - وكيل وزارة التربية والتعليم | G50: 1230لسنة2035 | H50: 2022-05-06 | I50: 2016-08-06 | J50: 2019-08-18 | K50: 43440 | L50: 500 | M50: 350 | N50: 150 | O50: 75 | P50: 72 | Q50: 5400 | R50: 37.5 | S50: 72 | T50: 2700 | U50: بدل اعتماد معلم أول أ ( 150 % ) | V50: 225 | W50: 28 | X50: 6300 | Y50: بدل اعتماد كبير معلمين ( 200 % ) | Z50: 300 | AA50: 44 | AB50: 13200 | AC50: حافز اداء معلم أول أ ( 25 % ) | AD50: 37.5 | AE50: 28 | AF50: 1050 | AG50: حافز اداء معلم ( 75 % ) | AH50: 112.5 | AI50: 44 | AJ50: 4950 | AK50: 1500 | AL50: 72 | AM50: 9000 | AN50: 60 | AO50: 14 | AP50: 840 | AQ50: 43440 | AS50: 25808132501396
A51: 39 | B51: محمد 39 | C51: 25706262500033 | D51: محكمة القضاء الادارى باسيوط | E51: سوهاج | F51: محافظة اسيوط - وكيل وزارة التربية والتعليم | G51: 1230لسنة2036 | H51: 2022-05-06 | I51: 2016-08-06 | J51: 2019-08-18 | K51: 46870.4 | L51: 450 | M51: 256 | N51: 194 | O51: 97 | P51: 72 | Q51: 6984 | R51: 48.5 | S51: 72 | T51: 3492 | U51: بدل اعتماد معلم خبير ( 175 % ) | V51: 339.5 | W51: 28 | X51: 9506 | Y51: بدل اعتماد معلم ( 50 % ) | Z51: 194 | AA51: 44 | AB51: 8536 | AC51: حافز اداء معلم خبير ( 25 % ) | AD51: 48.5 | AE51: 28 | AF51: 1358 | AG51: حافز اداء معلم أول ( 50 % ) | AH51: 97 | AI51: 44 | AJ51: 4268 | AK51: 1940 | AL51: 72 | AM51: 11640 | AN51: 77.6 | AO51: 14 | AP51: 1086.4 | AQ51: 46870.4 | AS51: 25706262500033
A52: 40 | B52: محمد 40 | C52: 25707062500725 | D52: محكمة القضاء الادارى باسيوط | E52: سوهاج | F52: محافظة اسيوط - وكيل وزارة التربية والتعليم | G52: 1230لسنة2037 | H52: 2022-05-06 | I52: 2016-08-06 | J52: 2019-08-18 | K52: 5469.2 | L52: 258 | M52: 236 | N52: 22 | O52: 11 | P52: 72 | Q52: 792 | R52: 5.5 | S52: 72 | T52: 396 | U52: بدل اعتماد كبير معلمين ( 200 % ) | V52: 44 | W52: 28 | X52: 1232 | Y52: بدل اعتماد معلم أول ( 125 % ) | Z52: 27.5 | AA52: 44 | AB52: 1210 | AC52: حافز اداء كبير معلمين ( 25 % ) | AD52: 5.5 | AE52: 28 | AF52: 154 | AG52: حافز اداء معلم أول أ ( 25 % ) | AH52: 5.5 | AI52: 44 | AJ52: 242 | AK52: 220 | AL52: 72 | AM52: 1320 | AN52: 8.8 | AO52: 14 | AP52: 123.2 | AQ52: 5469.2 | AS52: 25707062500725
A53: 41 | B53: محمد 41 | C53: 25708232500058 | D53: محكمة القضاء الادارى باسيوط | E53: اسيوط | F53: محافظة اسيوط - وكيل وزارة التربية والتعليم | G53: 1230لسنة2038 | H53: 2022-05-06 | I53: 2016-08-06 | J53: 2019-08-18 | K53: 63610.4 | L53: 659 | M53: 400 | N53: 259 | O53: 129.5 | P53: 72 | Q53: 9324 | R53: 64.75 | S53: 72 | T53: 4662 | U53: بدل اعتماد معلم ( 50 % ) | V53: 259 | W53: 28 | X53: 7252 | Y53: بدل اعتماد معلم أول أ ( 150 % ) | Z53: 388.5 | AA53: 44 | AB53: 17094 | AC53: حافز اداء معلم ( 75 % ) | AD53: 194.25 | AE53: 28 | AF53: 5439 | AG53: حافز اداء معلم خبير ( 25 % ) | AH53: 64.75 | AI53: 44 | AJ53: 2849 | AK53: 2590 | AL53: 72 | AM53: 15540 | AN53: 103.6 | AO53: 14 | AP53: 1450.4 | AQ53: 63610.4 | AS53: 25708232500058
A54: 42 | B54: محمد 42 | C54: 28803042501531 | D54: محكمة القضاء الادارى باسيوط | E54: سوهاج | F54: محافظة اسيوط - وكيل وزارة التربية والتعليم | G54: 1230لسنة2039 | H54: 2022-05-06 | I54: 2016-08-06 | J54: 2019-08-18 | K54: 7826 | L54: 400 | M54: 365 | N54: 35 | O54: 17.5 | P54: 72 | Q54: 1260 | R54: 8.75 | S54: 72 | T54: 630 | U54: بدل اعتماد معلم أول ( 125 % ) | V54: 43.75 | W54: 28 | X54: 1225 | Y54: بدل اعتماد معلم ( 50 % ) | Z54: 35 | AA54: 44 | AB54: 1540 | AC54: حافز اداء معلم أول ( 50 % ) | AD54: 17.5 | AE54: 28 | AF54: 490 | AG54: حافز اداء كبير معلمين ( 25 % ) | AH54: 8.75 | AI54: 44 | AJ54: 385 | AK54: 350 | AL54: 72 | AM54: 2100 | AN54: 14 | AO54: 14 | AP54: 196 | AQ54: 7826 | AS54: 28803042501531
A55: 43 | B55: محمد 43 | C55: 25901242500093 | D55: محكمة القضاء الادارى باسيوط | E55: المنيا | F55: محافظة اسيوط - وكيل وزارة التربية والتعليم | G55: 1230لسنة2040 | H55: 2022-05-06 | I55: 2016-08-06 | J55: 2019-08-18 | K55: 55425.6 | L55: 452 | M55: 236 | N55: 216 | O55: 108 | P55: 72 | Q55: 7776 | R55: 54 | S55: 72 | T55: 3888 | U55: بدل اعتماد معلم أول أ ( 150 % ) | V55: 324 | W55: 28 | X55: 9072 | Y55: بدل اعتماد معلم أول ( 125 % ) | Z55: 270 | AA55: 44 | AB55: 11880 | AC55: حافز اداء معلم أول أ ( 25 % ) | AD55: 54 | AE55: 28 | AF55: 1512 | AG55: حافز اداء معلم ( 75 % ) | AH55: 162 | AI55: 44 | AJ55: 7128 | AK55: 2160 | AL55: 72 | AM55: 12960 | AN55: 86.4 | AO55: 14 | AP55: 1209.6 | AQ55: 55425.6 | AS55: 25901242500093
A56: 44 | B56: محمد 44 | C56: 25903182500385 | D56: محكمة القضاء الادارى باسيوط | E56: سوهاج | F56: محافظة اسيوط - وكيل وزارة التربية والتعليم | G56: 1230لسنة2041 | H56: 2022-05-06 | I56: 2016-08-06 | J56: 2019-08-18 | K56: 95827 | L56: 653 | M56: 258 | N56: 395 | O56: 197.5 | P56: 72 | Q56: 14220 | R56: 98.75 | S56: 72 | T56: 7110 | U56: بدل اعتماد معلم ( 50 % ) | V56: 395 | W56: 28 | X56: 11060 | Y56: بدل اعتماد معلم أول أ ( 150 % ) | Z56: 592.5 | AA56: 44 | AB56: 26070 | AC56: حافز اداء معلم خبير ( 25 % ) | AD56: 98.75 | AE56: 28 | AF56: 2765 | AG56: حافز اداء معلم أول ( 50 % ) | AH56: 197.5 | AI56: 44 | AJ56: 8690 | AK56: 3950 | AL56: 72 | AM56: 23700 | AN56: 158 | AO56: 14 | AP56: 2212 | AQ56: 95827 | AS56: 25903182500385
A57: 45 | B57: محمد 45 | C57: 25906172501099 | D57: محكمة القضاء الادارى باسيوط | E57: اسيوط | F57: محافظة اسيوط - وكيل وزارة التربية والتعليم | G57: 1230لسنة2042 | H57: 2022-05-06 | I57: 2016-08-06 | J57: 2019-08-18 | K57: 24960 | L57: 450 | M57: 350 | N57: 100 | O57: 50 | P57: 72 | Q57: 3600 | R57: 25 | S57: 72 | T57: 1800 | U57: بدل اعتماد معلم أول ( 125 % ) | V57: 125 | W57: 28 | X57: 3500 | Y57: بدل اعتماد معلم خبير ( 175 % ) | Z57: 175 | AA57: 44 | AB57: 7700 | AC57: حافز اداء كبير معلمين ( 25 % ) | AD57: 25 | AE57: 28 | AF57: 700 | AG57: حافز اداء معلم أول أ ( 25 % ) | AH57: 25 | AI57: 44 | AJ57: 1100 | AK57: 1000 | AL57: 72 | AM57: 6000 | AN57: 40 | AO57: 14 | AP57: 560 | AQ57: 24960 | AS57: 25906172501099
A58: البند المطلوب تعزيزة : بند بدل المعلم 4 / 45 وبند بدل الاعتماد 4 / 46 وبند حافز الاداء 3 / 23 وبند حافز الاثابة 3 / 3 وبند المكافاة 3 / 14 وبند الجهود غير العادية للمعلمين بادارة اسيوط التعليمية ومدارسها الصادرة لهم احكام قضائية وبياناتهم كالاتى
A59: 46 | B59: محمد 46 | C59: 25907182500551 | D59: محكمة القضاء الادارى باسيوط | E59: سوهاج | F59: محافظة اسيوط - وكيل وزارة التربية والتعليم | G59: 1266لسنة2042 | H59: 2022-05-06 | I59: 2016-08-06 | J59: 2019-08-18 | K59: 45619.2 | L59: 420 | M59: 258 | N59: 162 | O59: 81 | P59: 72 | Q59: 5832 | R59: 40.5 | S59: 72 | T59: 2916 | U59: بدل اعتماد معلم خبير ( 175 % ) | V59: 283.5 | W59: 28 | X59: 7938 | Y59: بدل اعتماد معلم أول أ ( 150 % ) | Z59: 243 | AA59: 44 | AB59: 10692 | AC59: حافز اداء معلم أول ( 50 % ) | AD59: 81 | AE59: 28 | AF59: 2268 | AG59: حافز اداء معلم ( 75 % ) | AH59: 121.5 | AI59: 44 | AJ59: 5346 | AK59: 1620 | AL59: 72 | AM59: 9720 | AN59: 64.8 | AO59: 14 | AP59: 907.2 | AQ59: 45619.2 | AS59: 25907182500551
A60: 47 | B60: محمد 47 | C60: 25908222500041 | D60: محكمة القضاء الادارى باسيوط | E60: اسيوط | F60: محافظة اسيوط - وكيل وزارة التربية والتعليم | G60: 1266لسنة2043 | H60: 2022-05-06 | I60: 2016-08-06 | J60: 2019-08-18 | K60: 23284.8 | L60: 450 | M60: 352 | N60: 98 | O60: 49 | P60: 72 | Q60: 3528 | R60: 24.5 | S60: 72 | T60: 1764 | U60: بدل اعتماد كبير معلمين ( 200 % ) | V60: 196 | W60: 28 | X60: 5488 | Y60: بدل اعتماد معلم ( 50 % ) | Z60: 98 | AA60: 44 | AB60: 4312 | AC60: حافز اداء معلم أول أ ( 25 % ) | AD60: 24.5 | AE60: 28 | AF60: 686 | AG60: حافز اداء معلم أول أ ( 25 % ) | AH60: 24.5 | AI60: 44 | AJ60: 1078 | AK60: 980 | AL60: 72 | AM60: 5880 | AN60: 39.2 | AO60: 14 | AP60: 548.8 | AQ60: 23284.8 | AS60: 25908222500041
A61: 48 | B61: محمد 48 | C61: 25909052800601 | D61: محكمة القضاء الادارى باسيوط | E61: سوهاج | F61: محافظة اسيوط - وكيل وزارة التربية والتعليم | G61: 1266لسنة2044 | H61: 2022-05-06 | I61: 2016-08-06 | J61: 2019-08-18 | K61: 33547.8 | L61: 568 | M61: 425 | N61: 143 | O61: 71.5 | P61: 72 | Q61: 5148 | R61: 35.75 | S61: 72 | T61: 2574 | U61: بدل اعتماد معلم أول أ ( 150 % ) | V61: 214.5 | W61: 28 | X61: 6006 | Y61: بدل اعتماد معلم أول ( 125 % ) | Z61: 178.75 | AA61: 44 | AB61: 7865 | AC61: حافز اداء معلم خبير ( 25 % ) | AD61: 35.75 | AE61: 28 | AF61: 1001 | AG61: حافز اداء معلم خبير ( 25 % ) | AH61: 35.75 | AI61: 44 | AJ61: 1573 | AK61: 1430 | AL61: 72 | AM61: 8580 | AN61: 57.2 | AO61: 14 | AP61: 800.8 | AQ61: 33547.8 | AS61: 25909052800601
A62: 49 | B62: محمد 49 | C62: 25909302500072 | D62: محكمة القضاء الادارى باسيوط | E62: المنيا | F62: محافظة اسيوط - وكيل وزارة التربية والتعليم | G62: 1266لسنة2045 | H62: 2022-05-06 | I62: 2016-08-06 | J62: 2019-08-18 | K62: 43772.4 | L62: 425 | M62: 236 | N62: 189 | O62: 94.5 | P62: 72 | Q62: 6804 | R62: 47.25 | S62: 72 | T62: 3402 | U62: بدل اعتماد معلم ( 50 % ) | V62: 189 | W62: 28 | X62: 5292 | Y62: بدل اعتماد معلم أول أ ( 150 % ) | Z62: 283.5 | AA62: 44 | AB62: 12474 | AC62: حافز اداء كبير معلمين ( 25 % ) | AD62: 47.25 | AE62: 28 | AF62: 1323 | AG62: حافز اداء كبير معلمين ( 25 % ) | AH62: 47.25 | AI62: 44 | AJ62: 2079 | AK62: 1890 | AL62: 72 | AM62: 11340 | AN62: 75.6 | AO62: 14 | AP62: 1058.4 | AQ62: 43772.4 | AS62: 25909302500072
A63: 50 | B63: محمد 50 | C63: 26005012500254 | D63: محكمة القضاء الادارى باسيوط | E63: سوهاج | F63: محافظة اسيوط - وكيل وزارة التربية والتعليم | G63: 1266لسنة2046 | H63: 2022-05-06 | I63: 2016-08-06 | J63: 2019-08-18 | K63: 22963.2 | L63: 450 | M63: 358 | N63: 92 | O63: 46 | P63: 72 | Q63: 3312 | R63: 23 | S63: 72 | T63: 1656 | U63: بدل اعتماد معلم أول ( 125 % ) | V63: 115 | W63: 28 | X63: 3220 | Y63: بدل اعتماد معلم خبير ( 175 % ) | Z63: 161 | AA63: 44 | AB63: 7084 | AC63: حافز اداء كبير معلمين ( 25 % ) | AD63: 23 | AE63: 28 | AF63: 644 | AG63: حافز اداء كبير معلمين ( 25 % ) | AH63: 23 | AI63: 44 | AJ63: 1012 | AK63: 920 | AL63: 72 | AM63: 5520 | AN63: 36.8 | AO63: 14 | AP63: 515.2 | AQ63: 22963.2 | AS63: 26005012500254
A64: 51 | B64: محمد 51 | C64: 26009052500091 | D64: محكمة القضاء الادارى باسيوط | E64: اسيوط | F64: محافظة اسيوط - وكيل وزارة التربية والتعليم | G64: 1266لسنة2047 | H64: 2022-05-06 | I64: 2016-08-06 | J64: 2019-08-18 | K64: 49183.2 | L64: 520 | M64: 358 | N64: 162 | O64: 81 | P64: 72 | Q64: 5832 | R64: 40.5 | S64: 72 | T64: 2916 | U64: بدل اعتماد معلم أول أ ( 150 % ) | V64: 243 | W64: 28 | X64: 6804 | Y64: بدل اعتماد كبير معلمين ( 200 % ) | Z64: 324 | AA64: 44 | AB64: 14256 | AC64: حافز اداء معلم ( 75 % ) | AD64: 121.5 | AE64: 28 | AF64: 3402 | AG64: حافز اداء معلم ( 75 % ) | AH64: 121.5 | AI64: 44 | AJ64: 5346 | AK64: 1620 | AL64: 72 | AM64: 9720 | AN64: 64.8 | AO64: 14 | AP64: 907.2 | AQ64: 49183.2 | AS64: 26009052500091
A65: 52 | B65: محمد 52 | C65: 26009232500081 | D65: محكمة القضاء الادارى باسيوط | E65: سوهاج | F65: محافظة اسيوط - وكيل وزارة التربية والتعليم | G65: 1266لسنة2048 | H65: 2022-05-06 | I65: 2016-08-06 | J65: 2019-08-18 | K65: 70085.4 | L65: 659 | M65: 400 | N65: 259 | O65: 129.5 | P65: 72 | Q65: 9324 | R65: 64.75 | S65: 72 | T65: 4662 | U65: بدل اعتماد معلم خبير ( 175 % ) | V65: 453.25 | W65: 28 | X65: 12691 | Y65: بدل اعتماد معلم أول أ ( 150 % ) | Z65: 388.5 | AA65: 44 | AB65: 17094 | AC65: حافز اداء معلم أول ( 50 % ) | AD65: 129.5 | AE65: 28 | AF65: 3626 | AG65: حافز اداء معلم أول ( 50 % ) | AH65: 129.5 | AI65: 44 | AJ65: 5698 | AK65: 2590 | AL65: 72 | AM65: 15540 | AN65: 103.6 | AO65: 14 | AP65: 1450.4 | AQ65: 70085.4 | AS65: 26009232500081
A66: 53 | B66: محمد 53 | C66: 26011282501295 | D66: محكمة القضاء الادارى باسيوط | E66: المنيا | F66: محافظة اسيوط - وكيل وزارة التربية والتعليم | G66: 1266لسنة2049 | H66: 2022-05-06 | I66: 2016-08-06 | J66: 2019-08-18 | K66: 8316 | L66: 400 | M66: 365 | N66: 35 | O66: 17.5 | P66: 72 | Q66: 1260 | R66: 8.75 | S66: 72 | T66: 630 | U66: بدل اعتماد كبير معلمين ( 200 % ) | V66: 70 | W66: 28 | X66: 1960 | Y66: بدل اعتماد معلم ( 50 % ) | Z66: 35 | AA66: 44 | AB66: 1540 | AC66: حافز اداء معلم أول أ ( 25 % ) | AD66: 8.75 | AE66: 28 | AF66: 245 | AG66: حافز اداء معلم أول أ ( 25 % ) | AH66: 8.75 | AI66: 44 | AJ66: 385 | AK66: 350 | AL66: 72 | AM66: 2100 | AN66: 14 | AO66: 14 | AP66: 196 | AQ66: 8316 | AS66: 26011282501295
A67: 54 | B67: محمد 54 | C67: 26109282500108 | D67: محكمة القضاء الادارى باسيوط | E67: سوهاج | F67: محافظة اسيوط - وكيل وزارة التربية والتعليم | G67: 1266لسنة2050 | H67: 2022-05-06 | I67: 2016-08-06 | J67: 2019-08-18 | K67: 50673.6 | L67: 452 | M67: 236 | N67: 216 | O67: 108 | P67: 72 | Q67: 7776 | R67: 54 | S67: 72 | T67: 3888 | U67: بدل اعتماد معلم أول أ ( 150 % ) | V67: 324 | W67: 28 | X67: 9072 | Y67: بدل اعتماد معلم أول ( 125 % ) | Z67: 270 | AA67: 44 | AB67: 11880 | AC67: حافز اداء معلم خبير ( 25 % ) | AD67: 54 | AE67: 28 | AF67: 1512 | AG67: حافز اداء معلم خبير ( 25 % ) | AH67: 54 | AI67: 44 | AJ67: 2376 | AK67: 2160 | AL67: 72 | AM67: 12960 | AN67: 86.4 | AO67: 14 | AP67: 1209.6 | AQ67: 50673.6 | AS67: 26109282500108
A68: 55 | B68: محمد 55 | C68: 26203162502333 | D68: محكمة القضاء الادارى باسيوط | E68: اسيوط | F68: محافظة اسيوط - وكيل وزارة التربية والتعليم | G68: 1266لسنة2051 | H68: 2022-05-06 | I68: 2016-08-06 | J68: 2019-08-18 | K68: 91482 | L68: 653 | M68: 258 | N68: 395 | O68: 197.5 | P68: 72 | Q68: 14220 | R68: 98.75 | S68: 72 | T68: 7110 | U68: بدل اعتماد معلم ( 50 % ) | V68: 395 | W68: 28 | X68: 11060 | Y68: بدل اعتماد معلم أول أ ( 150 % ) | Z68: 592.5 | AA68: 44 | AB68: 26070 | AC68: حافز اداء كبير معلمين ( 25 % ) | AD68: 98.75 | AE68: 28 | AF68: 2765 | AG68: حافز اداء كبير معلمين ( 25 % ) | AH68: 98.75 | AI68: 44 | AJ68: 4345 | AK68: 3950 | AL68: 72 | AM68: 23700 | AN68: 158 | AO68: 14 | AP68: 2212 | AQ68: 91482 | AS68: 26203162502333
B69: ترى ادارة اسيوط التعليمية : موافقة سيادتكم على تعزيز بند بدل المعلم 4 / 45 وبند بدل الاعتماد 4 / 46 وبند حافز الاداء 3 / 23 وبند الاثابة 3 / 3 وبند المكافاة 3 / 14
B70: وبند الجهود غير العادية لعدد ( ) من المعلمين بادارة اسيوط التعليمية ومدارسها الصادر لهم احكام قضائية باحقيتهم فى صرفها
B71: رفع موافقة سيادتكم لمديرية النظيم والادارة باسيوط للدراسة واتخاذ اللازم
B72: المختص رئيس القسم مدير الموارد البشرية المدير المالى والادارى المدير العام مدير عام الشئون المالية والادارية وكيل الوزارة

Sheet ورقة2
A1: بدل اعتماد معلم ( 50 % ) | B1: حافز اداء معلم ( 75 % )
A2: بدل اعتماد معلم أول ( 125 % ) | B2: حافز اداء معلم أول ( 50 % )
A3: بدل اعتماد معلم أول أ ( 150 % ) | B3: حافز اداء معلم أول أ ( 25 % )
A4: بدل اعتماد معلم خبير ( 175 % ) | B4: حافز اداء معلم خبير ( 25 % )
A5: بدل اعتماد كبير معلمين ( 200 % ) | B5: حافز اداء كبير معلمين ( 25 % )

Sheet ورقة3
B1: محافظة اسيوط
B2: ادارة اسيوط التعليمية
B3: ادارة الموارد البشرية
B4: قسم الماهيات
B5: السيد الاستاذ / مدير مديرية التنظيم والادارة بأسيوط ( ادارة التدريب والتنظيم )
C6: تحية طيبة وبعد
B7: وردت الينا الدعوى رقم | D7: والمقامة من السيد /
B8: بمدرسة / ...................................... | D8: رقم قومى /
B9: ضد /
B10: بشان صرف الحوافز والمكافات ومقابل الجهود غير العادية وجميع المزايا النقدية والعينية المقررة له
B11: وفقا لاجره المستحق فى 30 / 6 / 2016 مع ما يترتب على ذلك من اثار وفروق مالية
B12: ومرفق طيه صورة ضوئية من الدعوى حيث انه تم عمل اللازم نحو حساب المستحقات لسيادتكم كالتالى
B13: وذلك عن المدة من : | D13: حتى :
B14: أساسى | C14: أساسى | D14: الفرق | F14: ملاحظات
B15: 2016-06-30 | C15: 2015-06-30
B18: البند | D18: قيمة | E18: عدد الشهور | F18: مبلغ المدة | G18: ملاحظات
D19: الشهر | E19: المستحقة | F19: المستحقة
B20: بدل معلم ( 50 % ) | E20: 72
B21: حافز ( 25 % ) | E21: 72
E22: 28
E23: 44
E24: 28
E25: 44
B26: مكافاة الامتحانات ( 200 يوم * 5 % ) | E26: 72
B27: جهود غير عادية | E27: 14
B28: الاجمالى
B29: وبذلك يستحق السيد المذكور مبلغ
B30: ونرجو الموافقة على الترخيص بصرف المبلغ المذكور أعلاه للمدعى على اساسي 30/6/2016
B31: المرفقات :
B32: عدد (2) صورة من الحكم معتمدة ومختومة ومزيلة بالصيغة التنفيذية
B33: عدد (2) صورة طبق الاصل من هيئة قضايا الدولة معتمدة ومختومة
B34: عدد (2) بيان تكاليف معتمدة ومختومة
B35: عدد (2) صورة الرقم القومى معتمدة ومختومة وسارية
B36: وتفضلوا سيادتكم بقبول وافر التحية و الاحترام
B37: المختص | C37: رئيس قسم الماهيات | E37: يعتمد مدير ادارة الموارد البشرية | G37: ختم شعار الجمهورية
